[Event "Early-Titled-Tuesday-Blitz-February-06-2024"]
[Site "Chess.com"]
[Date "2024.02.06"]
[Round "9"]
[White "Thunderbolt135"]
[Black "DeArron_Fox"]
[Result "1-0"]
[WhiteElo "2700"]
[BlackElo "2510"]
[TimeControl "180+1"]
[EndTime "9:44:44 PST"]
[Termination "Thunderbolt135 won by resignation"]

1. b3 {[%clk 0:03:00.9]} 1... e5 {[%clk 0:02:59.9]} 2. Bb2 {[%clk 0:03:00.2]}
2... Nc6 {[%clk 0:03:00.5]} 3. e3 {[%clk 0:03:00.9]} 3... Nf6 {[%clk 0:03:00.8]}
4. Bb5 {[%clk 0:03:00.6]} 4... Bd6 {[%clk 0:03:01.4]} 5. Ne2 {[%clk 0:03:00.4]}
5... a6 {[%clk 0:03:00]} 6. Bxc6 {[%clk 0:03:00.2]} 6... dxc6 {[%clk 0:03:00.9]}
7. Ng3 {[%clk 0:02:58.7]} 7... h5 {[%clk 0:02:57.4]} 8. Nc3 {[%clk 0:02:49.7]}
8... h4 {[%clk 0:02:53.4]} 9. Nge4 {[%clk 0:02:49.4]} 9... h3 {[%clk 0:02:53.7]}
10. g3 {[%clk 0:02:50]} 10... Bf5 {[%clk 0:02:25.2]} 11. Qf3 {[%clk 0:02:48.5]}
11... Bg6 {[%clk 0:01:50.6]} 12. Nxf6+ {[%clk 0:02:30.6]} 12... gxf6 {[%clk
0:01:31.2]} 13. O-O-O {[%clk 0:02:28.7]} 13... f5 {[%clk 0:01:26.8]} 14. Qe2
{[%clk 0:02:02.8]} 14... Bh5 {[%clk 0:00:26.4]} 15. f3 {[%clk 0:02:02.9]} 15...
e4 {[%clk 0:00:25.4]} 16. Nxe4 {[%clk 0:00:40]} 16... fxe4 {[%clk 0:00:25.3]}
17. Bxh8 {[%clk 0:00:40.7]} 17... Bxf3 {[%clk 0:00:25]} 18. Qc4 {[%clk
0:00:41.4]} 18... Bxh1 {[%clk 0:00:24.2]} 19. Rxh1 {[%clk 0:00:40.4]} 19... Qe7
{[%clk 0:00:21.1]} 20. Rf1 {[%clk 0:00:41]} 20... Qe6 {[%clk 0:00:08.9]} 21.
Qxe6+ {[%clk 0:00:22.2]} 21... fxe6 {[%clk 0:00:09.8]} 22. Rf6 {[%clk
0:00:22.9]} 22... Ke7 {[%clk 0:00:07.3]} 23. Rh6 {[%clk 0:00:23.1]} 23... Rf8
{[%clk 0:00:03.5]} 24. Rxh3 {[%clk 0:00:20.6]} 24... Ba3+ {[%clk 0:00:03.2]} 25.
Kd1 {[%clk 0:00:21.2]} 25... Rf1+ {[%clk 0:00:02.1]} 26. Ke2 {[%clk 0:00:21.6]}
26... Rc1 {[%clk 0:00:02.8]} 27. Be5 {[%clk 0:00:15.3]} 27... Rxc2 {[%clk
0:00:02.3]} 28. Rh7+ {[%clk 0:00:16]} 28... Ke8 {[%clk 0:00:01.9]} 29. Bc3
{[%clk 0:00:09.7]} 29... Bc1 {[%clk 0:00:01.8]} 30. Rxc7 {[%clk 0:00:09.2]}
30... Rxa2 {[%clk 0:00:02.7]} 31. Rxb7 {[%clk 0:00:09.4]} 31... a5 {[%clk
0:00:02.4]} 32. h4 {[%clk 0:00:09.5]} 32... c5 {[%clk 0:00:01.4]} 33. h5 {[%clk
0:00:09.8]} 33... c4 {[%clk 0:00:01.7]} 34. bxc4 {[%clk 0:00:09.3]} 34... a4
{[%clk 0:00:02.2]} 35. h6 {[%clk 0:00:09.7]} 35... a3 {[%clk 0:00:01.2]} 36. h7
{[%clk 0:00:10.3]} 1-0

[Event "Early-Titled-Tuesday-Blitz-February-06-2024"]
[Site "Chess.com"]
[Date "2024.02.06"]
[Round "9"]
[White "Mikhail_Golubev"]
[Black "kecalk"]
[Result "1-0"]
[WhiteElo "2657"]
[BlackElo "2516"]
[TimeControl "180+1"]
[EndTime "9:44:44 PST"]
[Termination "Mikhail_Golubev won by checkmate"]

1. e4 {[%clk 0:03:00.9]} 1... c5 {[%clk 0:02:57.9]} 2. Nf3 {[%clk 0:03:00.3]}
2... Nc6 {[%clk 0:02:58.2]} 3. Nc3 {[%clk 0:02:59.7]} 3... e5 {[%clk 0:02:57.6]}
4. Bc4 {[%clk 0:02:58.7]} 4... Be7 {[%clk 0:02:58]} 5. d3 {[%clk 0:02:59.3]}
5... d6 {[%clk 0:02:57.5]} 6. Nd2 {[%clk 0:02:58.6]} 6... Nf6 {[%clk 0:02:58]}
7. Nf1 {[%clk 0:02:58.6]} 7... Bg4 {[%clk 0:02:58.7]} 8. f3 {[%clk 0:02:58.4]}
8... Be6 {[%clk 0:02:59.5]} 9. Ne3 {[%clk 0:02:58.9]} 9... O-O {[%clk 0:02:59]}
10. O-O {[%clk 0:02:59.2]} 10... Rb8 {[%clk 0:02:58.9]} 11. a4 {[%clk
0:02:56.7]} 11... Nh5 {[%clk 0:02:55.8]} 12. Ned5 {[%clk 0:02:49.6]} 12... Bg5
{[%clk 0:02:52.8]} 13. Bd2 {[%clk 0:02:33.5]} 13... Kh8 {[%clk 0:02:19.4]} 14.
Qc1 {[%clk 0:02:28.7]} 14... Bxd2 {[%clk 0:02:19.1]} 15. Qxd2 {[%clk 0:02:28.7]}
15... Nf6 {[%clk 0:02:18.2]} 16. f4 {[%clk 0:02:16.7]} 16... exf4 {[%clk
0:02:10.8]} 17. Rxf4 {[%clk 0:02:11.3]} 17... Nd7 {[%clk 0:01:59]} 18. Raf1
{[%clk 0:02:06.3]} 18... Nde5 {[%clk 0:01:48]} 19. Ne3 {[%clk 0:01:54.7]} 19...
Nxc4 {[%clk 0:01:10.7]} 20. Nxc4 {[%clk 0:01:55.6]} 20... Ne5 {[%clk 0:01:04.9]}
21. b3 {[%clk 0:01:48.8]} 21... Nxc4 {[%clk 0:00:52.3]} 22. dxc4 {[%clk
0:01:45]} 22... Qe7 {[%clk 0:00:49.3]} 23. Qd3 {[%clk 0:01:27]} 23... f6 {[%clk
0:00:22.2]} 24. Nd1 {[%clk 0:01:21.8]} 24... a6 {[%clk 0:00:16.8]} 25. Ne3
{[%clk 0:01:21.8]} 25... Rfd8 {[%clk 0:00:11.3]} 26. Rh4 {[%clk 0:01:12.7]}
26... Qe8 {[%clk 0:00:08]} 27. e5 {[%clk 0:01:05]} 27... Bg8 {[%clk 0:00:07.4]}
28. exf6 {[%clk 0:00:57.6]} 28... gxf6 {[%clk 0:00:07.5]} 29. Rxf6 {[%clk
0:00:53.6]} 29... b5 {[%clk 0:00:03.8]} 30. axb5 {[%clk 0:00:49.3]} 30... axb5
{[%clk 0:00:04]} 31. cxb5 {[%clk 0:00:41.2]} 31... d5 {[%clk 0:00:04.4]} 32.
Rhf4 {[%clk 0:00:35.1]} 32... d4 {[%clk 0:00:03.9]} 33. Ng4 {[%clk 0:00:31.4]}
33... Qe7 {[%clk 0:00:02.1]} 34. b6 {[%clk 0:00:27.2]} 34... Rd6 {[%clk
0:00:01.2]} 35. h3 {[%clk 0:00:25.2]} 35... Rbxb6 {[%clk 0:00:01.2]} 36. Rf8
{[%clk 0:00:23.1]} 36... Rd8 {[%clk 0:00:01.7]} 37. Rxd8 {[%clk 0:00:19.9]}
37... Qxd8 {[%clk 0:00:01.7]} 38. Qf5 {[%clk 0:00:18.7]} 38... Qe7 {[%clk
0:00:01.6]} 39. Nf6 {[%clk 0:00:14.6]} 39... Bf7 {[%clk 0:00:01.9]} 40. Qxh7#
{[%clk 0:00:13.4]} 1-0

[Event "Early-Titled-Tuesday-Blitz-February-06-2024"]
[Site "Chess.com"]
[Date "2024.02.06"]
[Round "9"]
[White "KbzasDavid16"]
[Black "ATM622"]
[Result "1-0"]
[WhiteElo "2561"]
[BlackElo "2438"]
[TimeControl "180+1"]
[EndTime "9:44:46 PST"]
[Termination "KbzasDavid16 won on time"]

1. d4 {[%clk 0:03:00.9]} 1... Nf6 {[%clk 0:02:59]} 2. Nf3 {[%clk 0:02:56.4]}
2... e6 {[%clk 0:02:59.2]} 3. g3 {[%clk 0:02:55.8]} 3... d5 {[%clk 0:02:59]} 4.
Bg2 {[%clk 0:02:55.4]} 4... Be7 {[%clk 0:02:58.9]} 5. c4 {[%clk 0:02:55.7]} 5...
O-O {[%clk 0:02:58]} 6. Nc3 {[%clk 0:02:54.8]} 6... c6 {[%clk 0:02:57.6]} 7. b3
{[%clk 0:02:48.1]} 7... b6 {[%clk 0:02:54.1]} 8. O-O {[%clk 0:02:46.8]} 8... Bb7
{[%clk 0:02:54.1]} 9. Qd3 {[%clk 0:02:46.7]} 9... Nbd7 {[%clk 0:02:51.2]} 10.
Bb2 {[%clk 0:02:46.5]} 10... c5 {[%clk 0:02:50.9]} 11. cxd5 {[%clk 0:02:44.5]}
11... exd5 {[%clk 0:02:47.2]} 12. Rad1 {[%clk 0:02:42.6]} 12... Rc8 {[%clk
0:02:43.1]} 13. dxc5 {[%clk 0:02:32.7]} 13... Nxc5 {[%clk 0:02:40.6]} 14. Qf5
{[%clk 0:02:29.5]} 14... g6 {[%clk 0:02:38.8]} 15. Qb1 {[%clk 0:02:25.8]} 15...
Nce4 {[%clk 0:02:33.9]} 16. Qa1 {[%clk 0:02:20.6]} 16... Qc7 {[%clk 0:02:20.4]}
17. Nb5 {[%clk 0:02:13.3]} 17... Qc5 {[%clk 0:02:11]} 18. Nfd4 {[%clk
0:02:05.9]} 18... a6 {[%clk 0:01:30.8]} 19. Ba3 {[%clk 0:02:01.9]} 19... Qxa3
{[%clk 0:01:28.7]} 20. Nxa3 {[%clk 0:02:02.8]} 20... Bxa3 {[%clk 0:01:28.8]} 21.
Nf3 {[%clk 0:01:29.9]} 21... Nc3 {[%clk 0:01:26.7]} 22. Rd2 {[%clk 0:01:18.4]}
22... Nfe4 {[%clk 0:01:26.2]} 23. Rc2 {[%clk 0:01:18.5]} 23... a5 {[%clk
0:01:21.1]} 24. Nd4 {[%clk 0:01:16.2]} 24... Bc5 {[%clk 0:01:04.1]} 25. e3
{[%clk 0:01:10.3]} 25... Ba6 {[%clk 0:00:52]} 26. Re1 {[%clk 0:00:44.1]} 26...
Bd3 {[%clk 0:00:37.7]} 27. Bxe4 {[%clk 0:00:33.6]} 27... dxe4 {[%clk 0:00:34.3]}
28. Rxc3 {[%clk 0:00:31.1]} 28... Bb4 {[%clk 0:00:27.6]} 29. Rec1 {[%clk
0:00:29.9]} 29... Rce8 {[%clk 0:00:16.4]} 30. Rc7 {[%clk 0:00:25.7]} 30... f6
{[%clk 0:00:08.7]} 31. R1c6 {[%clk 0:00:24.1]} 31... Re5 {[%clk 0:00:06.6]} 32.
a3 {[%clk 0:00:14]} 32... Bd2 {[%clk 0:00:05]} 33. Ne6 {[%clk 0:00:08.1]} 33...
Re8 {[%clk 0:00:04.1]} 34. Nf4 {[%clk 0:00:05.5]} 34... Rg5 {[%clk 0:00:03.6]}
35. Qd4 {[%clk 0:00:05.3]} 35... Bc1 {[%clk 0:00:03.3]} 36. Qd7 {[%clk
0:00:05.4]} 36... Re7 {[%clk 0:00:01.5]} 37. Qxe7 {[%clk 0:00:04]} 1-0

[Event "Early-Titled-Tuesday-Blitz-February-06-2024"]
[Site "Chess.com"]
[Date "2024.02.06"]
[Round "9"]
[White "Goryachkina"]
[Black "FrenchMonster2002"]
[Result "1/2-1/2"]
[WhiteElo "2667"]
[BlackElo "2473"]
[TimeControl "180+1"]
[EndTime "9:44:48 PST"]
[Termination "Game drawn by repetition"]

1. e4 {[%clk 0:03:00.2]} 1... e5 {[%clk 0:02:56.3]} 2. Nf3 {[%clk 0:03:00]} 2...
Nf6 {[%clk 0:02:56.9]} 3. Nxe5 {[%clk 0:02:58.8]} 3... Nxe4 {[%clk 0:02:57.5]}
4. Qe2 {[%clk 0:02:56.1]} 4... Qe7 {[%clk 0:02:58]} 5. Qxe4 {[%clk 0:02:56.1]}
5... d6 {[%clk 0:02:58.7]} 6. d4 {[%clk 0:02:55.6]} 6... dxe5 {[%clk 0:02:59.3]}
7. dxe5 {[%clk 0:02:55.6]} 7... Nc6 {[%clk 0:02:59.8]} 8. Nc3 {[%clk 0:02:44.9]}
8... Qxe5 {[%clk 0:02:59.7]} 9. Qxe5+ {[%clk 0:02:35.7]} 9... Nxe5 {[%clk
0:03:00.6]} 10. Bf4 {[%clk 0:02:35.7]} 10... Bd6 {[%clk 0:03:00.5]} 11. Bg3
{[%clk 0:02:30]} 11... h5 {[%clk 0:03:00.3]} 12. O-O-O {[%clk 0:02:22.8]} 12...
f6 {[%clk 0:02:59.6]} 13. Nb5 {[%clk 0:02:15.3]} 13... h4 {[%clk 0:02:59.1]} 14.
Nxd6+ {[%clk 0:02:14.7]} 14... cxd6 {[%clk 0:02:59.1]} 15. Bf4 {[%clk 0:02:15]}
15... Ke7 {[%clk 0:02:56.5]} 16. h3 {[%clk 0:02:10.4]} 16... g5 {[%clk
0:02:56.4]} 17. Be3 {[%clk 0:02:07.6]} 17... Bf5 {[%clk 0:02:53.9]} 18. b3
{[%clk 0:02:04.8]} 18... Rhc8 {[%clk 0:02:42.8]} 19. Rd2 {[%clk 0:02:04.6]}
19... a6 {[%clk 0:02:10.4]} 20. Kb2 {[%clk 0:02:03.3]} 20... b5 {[%clk
0:02:06.5]} 21. c3 {[%clk 0:01:27.9]} 21... Rc6 {[%clk 0:02:02.4]} 22. Be2
{[%clk 0:01:25.2]} 22... Rac8 {[%clk 0:01:59.2]} 23. Bd4 {[%clk 0:01:25.2]}
23... Be4 {[%clk 0:01:39.5]} 24. f3 {[%clk 0:01:24.3]} 24... Bf5 {[%clk
0:01:35.2]} 25. Rhd1 {[%clk 0:01:24.4]} 25... Be6 {[%clk 0:01:10.7]} 26. Bd3
{[%clk 0:01:04.9]} 26... Nxd3+ {[%clk 0:00:56.3]} 27. Rxd3 {[%clk 0:01:05.1]}
27... d5 {[%clk 0:00:29.4]} 28. Re1 {[%clk 0:00:57.6]} 28... Kf7 {[%clk
0:00:28.9]} 29. Rde3 {[%clk 0:00:53.9]} 29... Re8 {[%clk 0:00:28.6]} 30. b4
{[%clk 0:00:33]} 30... Bd7 {[%clk 0:00:24.5]} 31. Kc1 {[%clk 0:00:32.8]} 31...
Rce6 {[%clk 0:00:22.6]} 32. Kd2 {[%clk 0:00:32.4]} 32... Rxe3 {[%clk 0:00:20.5]}
33. Rxe3 {[%clk 0:00:32.3]} 33... Rxe3 {[%clk 0:00:20.5]} 34. Kxe3 {[%clk
0:00:33.2]} 34... Ke6 {[%clk 0:00:18.7]} 35. a3 {[%clk 0:00:29.9]} 35... Be8
{[%clk 0:00:15.2]} 36. Bb6 {[%clk 0:00:29.5]} 36... Bg6 {[%clk 0:00:05.7]} 37.
Ba7 {[%clk 0:00:29.5]} 37... Bc2 {[%clk 0:00:05.1]} 38. Bb8 {[%clk 0:00:28.8]}
38... Bb3 {[%clk 0:00:04.4]} 39. Kd4 {[%clk 0:00:27.2]} 39... Bd1 {[%clk
0:00:02.5]} 40. Ke3 {[%clk 0:00:25.1]} 40... Bb3 {[%clk 0:00:02.5]} 41. Kf2
{[%clk 0:00:21.3]} 41... Bc4 {[%clk 0:00:02.4]} 42. Ke3 {[%clk 0:00:20.5]} 42...
Kf5 {[%clk 0:00:02.9]} 43. Kf2 {[%clk 0:00:20.4]} 43... Ke6 {[%clk 0:00:03.3]}
44. Ke3 {[%clk 0:00:20.9]} 44... Kf5 {[%clk 0:00:03.9]} 45. Kf2 {[%clk
0:00:20.9]} 45... Ke6 {[%clk 0:00:04.5]} 1/2-1/2

[Event "Early-Titled-Tuesday-Blitz-February-06-2024"]
[Site "Chess.com"]
[Date "2024.02.06"]
[Round "9"]
[White "dropstoneDP"]
[Black "lachesisQ"]
[Result "1/2-1/2"]
[WhiteElo "3031"]
[BlackElo "3093"]
[TimeControl "180+1"]
[EndTime "9:44:49 PST"]
[Termination "Game drawn by repetition"]

1. e4 {[%clk 0:02:57.7]} 1... c5 {[%clk 0:03:00.2]} 2. Nf3 {[%clk 0:02:57.6]}
2... d6 {[%clk 0:03:01]} 3. d4 {[%clk 0:02:57.3]} 3... cxd4 {[%clk 0:03:01.9]}
4. Nxd4 {[%clk 0:02:57.7]} 4... Nf6 {[%clk 0:03:02.6]} 5. Nc3 {[%clk 0:02:57.8]}
5... a6 {[%clk 0:03:03.1]} 6. h3 {[%clk 0:02:53.6]} 6... e5 {[%clk 0:03:01.9]}
7. Nb3 {[%clk 0:02:52.8]} 7... Be6 {[%clk 0:02:59.9]} 8. f4 {[%clk 0:02:49.4]}
8... b5 {[%clk 0:02:54.2]} 9. fxe5 {[%clk 0:02:48.5]} 9... dxe5 {[%clk
0:02:55.1]} 10. Qxd8+ {[%clk 0:02:47.9]} 10... Kxd8 {[%clk 0:02:56]} 11. Bg5
{[%clk 0:02:47.3]} 11... Be7 {[%clk 0:02:48]} 12. Bxf6 {[%clk 0:02:45.1]} 12...
Bxf6 {[%clk 0:02:44]} 13. O-O-O+ {[%clk 0:02:44.5]} 13... Nd7 {[%clk 0:02:39.3]}
14. Nc5 {[%clk 0:02:39.5]} 14... Kc8 {[%clk 0:01:45.3]} 15. Nxd7 {[%clk
0:02:38.4]} 15... Bxd7 {[%clk 0:01:44.6]} 16. Nd5 {[%clk 0:02:39]} 16... Bd8
{[%clk 0:01:26.9]} 17. Be2 {[%clk 0:02:38.2]} 17... h5 {[%clk 0:01:23]} 18. Rd3
{[%clk 0:02:01.5]} 18... Rh6 {[%clk 0:01:18.5]} 19. Rf1 {[%clk 0:01:59.1]} 19...
Be8 {[%clk 0:01:04.5]} 20. Kb1 {[%clk 0:01:54.6]} 20... Ra7 {[%clk 0:01:04.4]}
21. Rc1 {[%clk 0:01:47.1]} 21... Bg5 {[%clk 0:01:01.6]} 22. Rcd1 {[%clk
0:01:44.7]} 22... a5 {[%clk 0:00:53.2]} 23. c4 {[%clk 0:01:43.2]} 23... bxc4
{[%clk 0:00:43.4]} 24. Rc3 {[%clk 0:01:43.1]} 24... Kb8 {[%clk 0:00:43.3]} 25.
Rxc4 {[%clk 0:01:41.2]} 25... Rb7 {[%clk 0:00:42.6]} 26. Bf3 {[%clk 0:01:29.1]}
26... h4 {[%clk 0:00:42.1]} 27. Bg4 {[%clk 0:01:27.9]} 27... Rc6 {[%clk
0:00:41]} 28. Rxc6 {[%clk 0:01:10.3]} 28... Bxc6 {[%clk 0:00:41.9]} 29. Kc2
{[%clk 0:01:10.8]} 29... g6 {[%clk 0:00:41.7]} 30. b3 {[%clk 0:01:06.6]} 30...
Rb5 {[%clk 0:00:32.7]} 31. Be2 {[%clk 0:01:05.1]} 31... Rc5+ {[%clk 0:00:32.7]}
32. Bc4 {[%clk 0:01:05.2]} 32... f5 {[%clk 0:00:32.9]} 33. Kd3 {[%clk
0:01:02.7]} 33... Bxd5 {[%clk 0:00:22.4]} 34. Bxd5 {[%clk 0:01:03.6]} 34... Kc7
{[%clk 0:00:22.4]} 35. Bf7 {[%clk 0:01:00]} 35... Rc6 {[%clk 0:00:20.4]} 36. Bd5
{[%clk 0:00:56.3]} 36... Rb6 {[%clk 0:00:19.4]} 37. Rf1 {[%clk 0:00:52.5]} 37...
Bf4 {[%clk 0:00:19.6]} 38. Rf2 {[%clk 0:00:53]} 38... Kd6 {[%clk 0:00:17.2]} 39.
Rc2 {[%clk 0:00:51.5]} 39... Ke7 {[%clk 0:00:13]} 40. Rc5 {[%clk 0:00:44.1]}
40... Ra6 {[%clk 0:00:11.7]} 41. a4 {[%clk 0:00:43.2]} 41... Kf6 {[%clk
0:00:11.1]} 42. Rc6+ {[%clk 0:00:21.9]} 42... Rxc6 {[%clk 0:00:11]} 43. Bxc6
{[%clk 0:00:22.8]} 43... Bg3 {[%clk 0:00:10.4]} 44. Ke2 {[%clk 0:00:23.2]} 44...
Ke7 {[%clk 0:00:09.2]} 45. Kf3 {[%clk 0:00:23.5]} 45... Be1 {[%clk 0:00:08.2]}
46. Bb5 {[%clk 0:00:23.3]} 46... Bb4 {[%clk 0:00:06.1]} 47. Bc4 {[%clk
0:00:23.4]} 47... Kf6 {[%clk 0:00:06.5]} 48. Bb5 {[%clk 0:00:23.7]} 48... Bc3
{[%clk 0:00:06.8]} 49. Bc4 {[%clk 0:00:24.1]} 49... Bb4 {[%clk 0:00:07.3]} 50.
Bb5 {[%clk 0:00:24.7]} 50... Bc3 {[%clk 0:00:07.9]} 51. Bc4 {[%clk 0:00:25.4]}
51... Bb4 {[%clk 0:00:08.5]} 1/2-1/2

[Event "Early-Titled-Tuesday-Blitz-February-06-2024"]
[Site "Chess.com"]
[Date "2024.02.06"]
[Round "9"]
[White "pfalcon1949"]
[Black "stratacticos"]
[Result "1-0"]
[WhiteElo "1955"]
[BlackElo "2032"]
[TimeControl "180+1"]
[EndTime "9:44:51 PST"]
[Termination "pfalcon1949 won on time"]

1. e4 {[%clk 0:02:27.7]} 1... c5 {[%clk 0:02:58.8]} 2. Nf3 {[%clk 0:02:23.3]}
2... Nc6 {[%clk 0:02:58.3]} 3. d4 {[%clk 0:02:23.7]} 3... cxd4 {[%clk 0:02:58]}
4. Nxd4 {[%clk 0:02:24.6]} 4... e5 {[%clk 0:02:57.5]} 5. Nb5 {[%clk 0:02:23.8]}
5... d6 {[%clk 0:02:54.7]} 6. N1c3 {[%clk 0:02:24.3]} 6... a6 {[%clk 0:02:54.6]}
7. Na3 {[%clk 0:02:23.7]} 7... b5 {[%clk 0:02:55.5]} 8. Nd5 {[%clk 0:02:20.1]}
8... Nce7 {[%clk 0:02:55.6]} 9. c4 {[%clk 0:02:17.9]} 9... Nxd5 {[%clk
0:02:54.5]} 10. exd5 {[%clk 0:02:14.1]} 10... b4 {[%clk 0:02:50.9]} 11. Nc2
{[%clk 0:02:13.2]} 11... a5 {[%clk 0:02:46.5]} 12. b3 {[%clk 0:02:11.6]} 12...
f5 {[%clk 0:02:44.4]} 13. Be2 {[%clk 0:02:09.2]} 13... Nf6 {[%clk 0:02:43.7]}
14. Bg5 {[%clk 0:02:07]} 14... Be7 {[%clk 0:02:43.2]} 15. O-O {[%clk 0:02:06.4]}
15... O-O {[%clk 0:02:42.8]} 16. f4 {[%clk 0:02:05.5]} 16... e4 {[%clk
0:02:40.9]} 17. Ne3 {[%clk 0:02:03.8]} 17... h6 {[%clk 0:02:35.7]} 18. Bh4
{[%clk 0:02:01.5]} 18... Kh7 {[%clk 0:02:22.3]} 19. Rc1 {[%clk 0:01:57]} 19...
a4 {[%clk 0:02:10.7]} 20. Kh1 {[%clk 0:01:56.4]} 20... axb3 {[%clk 0:02:10]} 21.
axb3 {[%clk 0:01:55.3]} 21... Ra3 {[%clk 0:02:09.5]} 22. Rg1 {[%clk 0:01:47.3]}
22... Nxd5 {[%clk 0:02:08.6]} 23. Nxd5 {[%clk 0:01:37.4]} 23... Bxh4 {[%clk
0:02:07.8]} 24. Nxb4 {[%clk 0:01:34.8]} 24... Bf2 {[%clk 0:01:40]} 25. Rf1
{[%clk 0:01:29.4]} 25... Bc5 {[%clk 0:01:31.6]} 26. Nd5 {[%clk 0:01:26]} 26...
Be6 {[%clk 0:01:29.3]} 27. Ra1 {[%clk 0:01:14.3]} 27... Bxd5 {[%clk 0:01:13.4]}
28. cxd5 {[%clk 0:01:04.4]} 28... Rxa1 {[%clk 0:01:03.1]} 29. Qxa1 {[%clk
0:01:03.2]} 29... Qh4 {[%clk 0:00:59.5]} 30. Bc4 {[%clk 0:00:58.8]} 30... Bf2
{[%clk 0:00:49.1]} 31. Qc3 {[%clk 0:00:50.4]} 31... e3 {[%clk 0:00:40.5]} 32.
Ra1 {[%clk 0:00:37.5]} 32... Qxf4 {[%clk 0:00:32]} 33. Ra7 {[%clk 0:00:34.1]}
33... Qe5 {[%clk 0:00:31.3]} 34. Qxe5 {[%clk 0:00:26.6]} 34... dxe5 {[%clk
0:00:31.2]} 35. Rd7 {[%clk 0:00:16.3]} 35... Ra8 {[%clk 0:00:27.3]} 36. g3
{[%clk 0:00:13.3]} 36... f4 {[%clk 0:00:27.1]} 37. gxf4 {[%clk 0:00:12.6]} 37...
exf4 {[%clk 0:00:26.8]} 38. Kg2 {[%clk 0:00:13.5]} 38... Ra2 {[%clk 0:00:25.5]}
39. Kf3 {[%clk 0:00:13.3]} 39... Bg1 {[%clk 0:00:15.1]} 40. Bd3+ {[%clk
0:00:11.6]} 40... Kg8 {[%clk 0:00:12.5]} 41. Bg6 {[%clk 0:00:11.3]} 1-0

[Event "Early-Titled-Tuesday-Blitz-February-06-2024"]
[Site "Chess.com"]
[Date "2024.02.06"]
[Round "9"]
[White "DenLaz"]
[Black "Bauman_Guy"]
[Result "1-0"]
[WhiteElo "3057"]
[BlackElo "2867"]
[TimeControl "180+1"]
[EndTime "9:44:53 PST"]
[Termination "DenLaz won by checkmate"]

1. d4 {[%clk 0:03:00.9]} 1... Nf6 {[%clk 0:02:58]} 2. c4 {[%clk 0:03:01.6]} 2...
e6 {[%clk 0:02:57.9]} 3. Nf3 {[%clk 0:03:02.3]} 3... d5 {[%clk 0:02:57.7]} 4.
Nc3 {[%clk 0:03:02.9]} 4... c5 {[%clk 0:02:57.7]} 5. cxd5 {[%clk 0:03:01.2]}
5... Nxd5 {[%clk 0:02:58.6]} 6. e4 {[%clk 0:03:01]} 6... Nxc3 {[%clk 0:02:56.3]}
7. bxc3 {[%clk 0:03:01.9]} 7... cxd4 {[%clk 0:02:57.1]} 8. cxd4 {[%clk
0:03:02.3]} 8... Bb4+ {[%clk 0:02:57.6]} 9. Bd2 {[%clk 0:03:03]} 9... Bxd2+
{[%clk 0:02:58.1]} 10. Qxd2 {[%clk 0:03:03.9]} 10... O-O {[%clk 0:02:58.4]} 11.
Rd1 {[%clk 0:03:04.5]} 11... b6 {[%clk 0:02:57.8]} 12. Bd3 {[%clk 0:03:02.1]}
12... Bb7 {[%clk 0:02:57.7]} 13. O-O {[%clk 0:03:01.9]} 13... Nd7 {[%clk
0:02:58.3]} 14. Rfe1 {[%clk 0:03:01.1]} 14... Rc8 {[%clk 0:02:56.4]} 15. d5
{[%clk 0:03:00.9]} 15... Nc5 {[%clk 0:02:54.5]} 16. Nd4 {[%clk 0:02:49.6]} 16...
exd5 {[%clk 0:02:41.6]} 17. e5 {[%clk 0:02:49.8]} 17... Ne6 {[%clk 0:02:42.2]}
18. Nf5 {[%clk 0:02:41.8]} 18... Rc5 {[%clk 0:02:38.3]} 19. Nd6 {[%clk
0:02:40.3]} 19... Ba8 {[%clk 0:02:37.1]} 20. f4 {[%clk 0:02:38.5]} 20... d4
{[%clk 0:02:21.2]} 21. Bc4 {[%clk 0:01:58.1]} 21... Bd5 {[%clk 0:02:09.3]} 22.
Bd3 {[%clk 0:01:51.7]} 22... Ra5 {[%clk 0:01:49.5]} 23. Ra1 {[%clk 0:01:33.3]}
23... Nc5 {[%clk 0:01:36.6]} 24. Bf1 {[%clk 0:01:26.8]} 24... Nb7 {[%clk
0:01:01.1]} 25. Nf5 {[%clk 0:01:20.2]} 25... Be6 {[%clk 0:01:00.3]} 26. Ng3
{[%clk 0:01:03.2]} 26... d3 {[%clk 0:00:48.9]} 27. f5 {[%clk 0:00:59.5]} 27...
Qd4+ {[%clk 0:00:48]} 28. Kh1 {[%clk 0:00:59.7]} 28... Bd7 {[%clk 0:00:46.2]}
29. e6 {[%clk 0:00:44.4]} 29... fxe6 {[%clk 0:00:36.8]} 30. fxe6 {[%clk
0:00:45.3]} 30... Bxe6 {[%clk 0:00:35.2]} 31. Bxd3 {[%clk 0:00:40.2]} 31... Rd5
{[%clk 0:00:20.6]} 32. Rad1 {[%clk 0:00:37.1]} 32... Kh8 {[%clk 0:00:08.2]} 33.
Rxe6 {[%clk 0:00:30.6]} 33... Nc5 {[%clk 0:00:08.5]} 34. Re3 {[%clk 0:00:29.3]}
34... Rfd8 {[%clk 0:00:08.8]} 35. Qe2 {[%clk 0:00:27.2]} 35... g6 {[%clk
0:00:05]} 36. Bc2 {[%clk 0:00:20.2]} 36... Qxd1+ {[%clk 0:00:02.9]} 37. Bxd1
{[%clk 0:00:20.3]} 37... Rxd1+ {[%clk 0:00:03.8]} 38. Nf1 {[%clk 0:00:20.8]}
38... Kg7 {[%clk 0:00:04.2]} 39. h3 {[%clk 0:00:17.8]} 39... R1d7 {[%clk
0:00:03.5]} 40. Re7+ {[%clk 0:00:17.7]} 40... Kf8 {[%clk 0:00:04.2]} 41. Rxd7
{[%clk 0:00:17.5]} 41... Rxd7 {[%clk 0:00:05.1]} 42. Ng3 {[%clk 0:00:17.8]}
42... Re7 {[%clk 0:00:05.7]} 43. Qf2+ {[%clk 0:00:18]} 43... Kg7 {[%clk
0:00:06]} 44. Qd4+ {[%clk 0:00:18.2]} 44... Kf7 {[%clk 0:00:06.5]} 45. Kh2
{[%clk 0:00:18.7]} 45... h6 {[%clk 0:00:06.9]} 46. Nf1 {[%clk 0:00:18.5]} 46...
h5 {[%clk 0:00:07.5]} 47. Ne3 {[%clk 0:00:18.5]} 47... Re4 {[%clk 0:00:08.2]}
48. Qd5+ {[%clk 0:00:18.9]} 48... Kf6 {[%clk 0:00:08.7]} 49. Qd6+ {[%clk
0:00:18.8]} 49... Re6 {[%clk 0:00:08.6]} 50. Nd5+ {[%clk 0:00:19.3]} 50... Kf5
{[%clk 0:00:08.7]} 51. Qf4# {[%clk 0:00:19.4]} 1-0